{"text_format":"1","workbook":"xlsx","n_sheets":3,"sheets":["Sheet1","Sheet2","Guide costs"],"not_rendered":{"charts":0,"images":0,"macros":1,"external_links":0,"defined_names":1,"comments":0,"pivot_tables":0},"unopened":[],"bounds":{"document_bytes":16777216,"sheet_cells":100000,"rows_first":2000,"rows_last":500,"rows_between":2000,"halvings":0,"cell_chars":16384,"cell_head_chars":4096},"cells_cut":0,"cells_raw":0,"read":"whole","date_system":"1900"}

{"sheet":"Sheet1","index":0,"n_rows":23,"n_cols":12,"rows_kept":23,"cut":false,"hidden":false,"merged":[]}
["Project","Type of transport","Country","City","Price","Saving, RUB","Saving, EUR","Comment","Saving Total Local","Saving Total Export"]
["ROSFRAK2020","10-tons truck (30 m3)",null,"Самара",66000,{"$f":"IFERROR(savingRUB(B2,D2,E2),\"\")","v":"15550"},{"$f":"IFERROR(savingEUR(B2,C2,E2),\"\")","v":""},"Local",{"$f":"SUMIF(H2:H498,\"Local\",F2:F498)","v":0}]
["MOSCRACK LOT 1","Standard Eurotruck (82 m3)",null,"Волгоград",63000,{"$f":"IFERROR(savingRUB(B3,D3,E3),\"\")","v":"14833,33"},{"$f":"IFERROR(savingEUR(B3,C3,E3),\"\")","v":""},"Local",{"$f":"SUMIF(H3:H499,\"Local\",F3:F499)","v":0}]
["MOSCRACK LOT 3","Standard Eurotruck (82 m3)",null,"Волгоград",63000,{"$f":"IFERROR(savingRUB(B4,D4,E4),\"\")","v":"14833,33"},"","Local",0,null,"USD",{"$f":"ЦБР(K4)","v":74.150300000000001}]
["MOSCRACK LOT 4","Standard Eurotruck (82 m3)",null,"Волгоград",63000,{"$f":"IFERROR(savingRUB(B5,D5,E5),\"\")","v":"14833,33"},"","Local",0,null,"EUR",{"$f":"ЦБР(K5)","v":86.614999999999995}]
["MOSCRACK LOT 5","Standard Eurotruck (82 m3)",null,"Волгоград",63000,{"$f":"IFERROR(savingRUB(B6,D6,E6),\"\")","v":"14833,33"},"","Local",0,null,"Export"]
[null,null,null,null,null,{"$f":"IFERROR(savingRUB(B7,D7,E7),\"\")","v":""},"",null,0,null,"Local"]
[null,null,null,null,null,{"$f":"IFERROR(savingRUB(B8,D8,E8),\"\")","v":""},"",null,0]
[null,null,null,null,null,{"$f":"IFERROR(savingRUB(B9,D9,E9),\"\")","v":""},"",null,0]
[null,null,null,null,null,{"$f":"IFERROR(savingRUB(B10,D10,E10),\"\")","v":""},"",null,0]
[null,null,null,null,null,{"$f":"IFERROR(savingRUB(B11,D11,E11),\"\")","v":""},"",null,0]
[null,null,null,null,null,{"$f":"IFERROR(savingRUB(B12,D12,E12),\"\")","v":""},"",null,0]
[null,null,null,null,null,{"$f":"IFERROR(savingRUB(B13,D13,E13),\"\")","v":""},"",null,0]
[null,null,null,null,null,{"$f":"IFERROR(savingRUB(B14,D14,E14),\"\")","v":""},"",null,0]
[null,null,null,null,null,{"$f":"IFERROR(savingRUB(B15,D15,E15),\"\")","v":""},"",null,0]
[null,null,null,null,null,{"$f":"IFERROR(savingRUB(B16,D16,E16),\"\")","v":""},"",null,0]
[null,null,null,null,null,{"$f":"IFERROR(savingRUB(B17,D17,E17),\"\")","v":""},"",null,0]
[null,null,null,null,null,{"$f":"IFERROR(savingRUB(B18,D18,E18),\"\")","v":""},"",null,0]
[null,null,null,null,null,{"$f":"IFERROR(savingRUB(B19,D19,E19),\"\")","v":""},"",null,0]
[null,null,null,null,null,{"$f":"IFERROR(savingRUB(B20,D20,E20),\"\")","v":""},"",null,0]
[null,null,null,null,null,{"$f":"IFERROR(savingRUB(B21,D21,E21),\"\")","v":""},"",null,0]
[null,null,null,null,null,{"$f":"IFERROR(savingRUB(B22,D22,E22),\"\")","v":""},"",null,0]
[null,null,null,null,null,{"$f":"IFERROR(L26*G23,\"\")","v":""},""]

{"sheet":"Sheet2","index":1,"n_rows":2,"n_cols":4,"rows_kept":2,"cut":false,"hidden":false,"merged":[]}
["Standard Eurotruck (82 m3)","10-tons truck (30 m3)"," 5-tons truck (27m3)","3-tons truck (12 m3)"]
["Standard Eurotruck (82 m3) + \n10-tons truck (30 m3)","Standard Eurotruck (82 m3)","10-tons truck (30 m3)"," 5-tons truck (27m3)"]

{"sheet":"Guide costs","index":2,"n_rows":196,"n_cols":18,"rows_kept":196,"cut":false,"hidden":false,"merged":[]}
["Local",null,null,null,null,null,null,"Export"]
["City","Standard Eurotruck (82 m3)","10-tons truck (30 m3)","5-tons truck (27m3)","3-tons truck (12 m3)",null,null,"Country","Standard Eurotruck (82 m3)","Price, 10-tons truck (30 m3)","Price, 5-tons truck","3-tons truck (12 m3)",null,null,null,null,"Afghanistan","Афганистан"]
["Актау",201336,184880,167266.66666666666,139933.33333333334,null,null,"Czech Republic",2200,{"$f":"1500+100","v":1600},1400,1250,null,null,null,null,"Albania","Албания"]
["Атырау",146188,137740,113266.66666666667,94000,null,null,"Austria",1850,{"$f":"1400+100","v":1500},1250,1050,null,null,null,null,"Algeria","Алжир"]
["Ачинск",280190,242730,198720,173840,null,null,"Belgium",2700,2500,2050,1900,null,null,null,null,"Andorra","Андорра"]
["Ангарск",374210,337050,274000,243940,null,null,"Finland",1600,1450,1200,1000,null,null,null,null,"Angola","Ангола"]
["Астрахань",104441.66666666667,87783.333333333328,72461.666666666672,63083.333333333336,null,null,"France",4000,3200,2450,2300,null,null,null,null,"Antigua and Barbuda","Антигуа и Барбуда"]
["Балашиха",55283.333333333336,22200,18966.666666666668,16850,null,null,"Germany",2400,1900,1280,1050,null,null,null,null,"Argentina","Аргентина"]
["Благовещенск, Амур",501040,489460,411740,368620,null,null,"Hungary",2350,1800,1210,1000,null,null,null,null,"Armenia","Армения"]
["Благовещенск, Башкортостан",108160,97740,78260,66740,null,null,"Italy",2600,2350,1850,1600,null,null,null,null,"Australia","Австралия"]
["Борисоглебск",50800,44440,35280,30560,null,null,"Poland",1600,1550,1150,1050,null,null,null,null,"Austria","Австрия"]
["Братск",357890,318430,256400,229680,null,null,"Portugal",4150,3800,2650,2350,null,null,null,null,"Azerbaijan","Азербайджан"]
["Дорогобуж",41050,35600,29275,24525,null,null,"Romania",2000,1500,1350,1050,null,null,null,null,"The Bahamas","Багамы"]
["Дзержинск",41660,37600,30180,25980,null,null,"Scotland",4000,3550,2850,2600,null,null,null,null,"Bahrain","Бахрейн"]
["Гагарин",32620,29180,23360,20680,null,null,"Slovakia",2000,1650,1450,1300,null,null,null,null,"Bangladesh","Бангладеш"]
["Ханты-Мансийск",206160,183800,150420,132660,null,null,"Spain",4500,3800,3050,1400,null,null,null,null,"Barbados","Барбадос"]
["Калуга",28900,24908.333333333332,21041.666666666668,17983.333333333332,null,null,"Switzerland",3000,2550,1650,1350,null,null,null,null,"Belarus","Беларусь"]
["Казань",70608.333333333328,61716.666666666664,48800,41251.666666666664,null,null,"Netherlands",2500,2100,1450,1200,null,null,null,null,"Belgium","Бельгия"]
["Кемерово",251316.66666666666,226516.66666666666,183133.33333333334,160250,null,null,"Lithuania",1350,1150,750,650,null,null,null,null,"Belize","Белиз"]
["Кириши",54000,47383.333333333336,38783.333333333336,33533.333333333336,null,null,"Norway",3900,3300,2450,1850,null,null,null,null,"Benin","Бенин"]
["Кирово-Чепецк",80080,70820,55180,48300,null,null,"Sweden",3550,2800,2100,1700,null,null,null,null,"Bhutan","Бутан"]
["Краснодар",101408.33333333333,87166.666666666672,69283.333333333328,60691.666666666664,null,null,"United Kingdom",4000,3600,2500,2200,null,null,null,null,"Bolivia","Боливия"]
["Красноярск",283290,256120,205510,179450,null,null,"Казахстан",1590,1300,1170,850,null,null,null,null,"Bosnia and Herzegovina","Босния и Герцеговина"]
["Кстово",43041.666666666664,38987.5,32133.333333333332,27645.833333333332,null,null,"Estonia",1200,1050,950,800,null,null,null,null,"Botswana","Ботсвана"]
["Курган",153910,138230,110600,98080,null,null,"Беларусь",650,510,450,395,null,null,null,null,"Brazil","Бразилия"]
["Липецк",37041.666666666664,33037.5,28150,23629.166666666668,null,null,null,null,null,null,null,null,null,null,null,"Brunei","Бруней"]
["Мончегорск",146720,129400,103260,89000,null,null,null,null,null,null,null,null,null,null,null,"Bulgaria","Болгария"]
["Москва",23866.666666666668,21133.333333333332,17700,15433.333333333334,null,null,null,null,null,null,null,null,null,null,null,"Burkina Faso","Буркина Фасо"]
["Мозырь",44816,40662.400000000001,37828,32970,null,null,null,null,null,null,null,null,null,null,null,"Burundi","Бурунди"]
["Нижнекамск",85000,76125,60650,53650,null,null,null,null,null,null,null,null,null,null,null,"Cambodia","Камбоджа"]
["Нижневартовск",227430,204810,160140,142430,null,null,null,null,null,null,null,null,null,null,null,"Cameroon","Камерун"]
["Нижний Новгород",42941.666666666664,39070.833333333336,32116.666666666668,27612.5,null,null,null,null,null,null,null,null,null,null,null,"Canada","Канада"]
["Новый Уренгой",280880,201883,193260,173150,null,null,null,null,null,null,null,null,null,null,null,"Cape Verde","Кабо-Верде"]
["Новомосковск",28033.333333333332,24883.333333333332,21058.333333333332,17491.666666666668,null,null,null,null,null,null,null,null,null,null,null,"Central African Republic","Центрально-африканская республика"]
["Новополоцк",44080,40012,37140,32440,null,null,null,null,null,null,null,null,null,null,null,"Chad","Чад"]
["Новошахтинск",79980,72000,56880,50480,null,null,null,null,null,null,null,null,null,null,null,"Chile","Чили"]
["Омск",189591.66666666666,166283.33333333334,136666.66666666666,119222.5,null,null,null,null,null,null,null,null,null,null,null,"China","Китай"]
["Оренбург",117766.66666666667,100316.66666666667,80433.333333333328,70300,null,null,null,null,null,null,null,null,null,null,null,"Colombia","Колумбия"]
["Орск",133820,112340,93520,82080,null,null,null,null,null,null,null,null,null,null,null,"Comoros","Коморы"]
["Павлодар",211992,196460,186400,156200,null,null,null,null,null,null,null,null,null,null,null,"The Republic of the Congo","Республика Конго"]
["Пермь",108850,97316.666666666672,79358.333333333328,68025,null,null,null,null,null,null,null,null,null,null,null,"The Democratic Republic of the Congo","Демократическая республика Конго"]
["Подольск",23166.666666666668,20283.333333333332,17050,15133.333333333334,null,null,null,null,null,null,null,null,null,null,null,"Costa Rica","Коста-Рика"]
["Ростов на Дону",84200,75550,61483.333333333336,54483.333333333336,null,null,null,null,null,null,null,null,null,null,null,"Cote d’Ivoire","Кот-д’Ивуар"]
["Рязань",28400,24600,21233.333333333332,18533.333333333332,null,null,null,null,null,null,null,null,null,null,null,"Croatia","Хорватия"]
["Самара",81550,71908.333333333328,58558.333333333336,49825,null,null,null,null,null,null,null,null,null,null,null,"Cuba","Куба"]
["Санкт-Петербург",53650,47650,37566.666666666664,31616.666666666668,null,null,null,null,null,null,null,null,null,null,null,"Cyprus","Кипр"]
["Саратов",62167.083333333336,57438.75,46393.75,42234.583333333336,null,null,null,null,null,null,null,null,null,null,null,"Czech Republic","Чехия"]
["Салават",113700,102920,80840,69460,null,null,null,null,null,null,null,null,null,null,null,"Denmark","Дания"]
["Софрино",207990,196075,217100,183300,null,null,null,null,null,null,null,null,null,null,null,"Djibouti","Джибути"]
["Сызрань",26450,23300,19566.666666666668,17083.333333333332,null,null,null,null,null,null,null,null,null,null,null,"Dominica","Доминика"]
["Таганрог",75600,68760,53760,47020,null,null,null,null,null,null,null,null,null,null,null,"Dominican Republic","Доминиканская Республика"]
["Тула",85200,76500,59700,51700,null,null,null,null,null,null,null,null,null,null,null,"East Timor","Восточный Тимор"]
["Тюмень",27800,24500,20591.666666666668,17175,null,null,null,null,null,null,null,null,null,null,null,"Ecuador","Эквадор"]
["Ульяновск",155133.33333333334,117041.66666666667,113883.33333333333,97300,null,null,null,null,null,null,null,null,null,null,null,"Egypt","Египет"]
["Уфа",95775,87400,69100,62775,null,null,null,null,null,null,null,null,null,null,null,"El Salvador","Сальвадор"]
["Урень",72608.333333333328,63816.666666666664,48116.666666666664,42308.333333333336,null,null,null,null,null,null,null,null,null,null,null,"Equatorial Guinea","Экваториальная Гвинея"]
["Усть-Кут",59875,54800,44050,38225,null,null,null,null,null,null,null,null,null,null,null,"Eritrea","Эритрея"]
["Великий Новгород",393560,337500,282830,254590,null,null,null,null,null,null,null,null,null,null,null,"Estonia","Эстония"]
["Волгоград",48416.666666666664,43400,34183.333333333336,29416.666666666668,null,null,null,null,null,null,null,null,null,null,null,"Ethiopia","Эфиопия"]
["Воронеж",72933.333333333328,66000,52300,46650,null,null,null,null,null,null,null,null,null,null,null,"Fiji","Фиджи"]
["Вынгапур",41750,37633.333333333336,30733.333333333332,27200,null,null,null,null,null,null,null,null,null,null,null,"Finland","Финляндия"]
["Ярославль",190000,168333.33333333334,135000,110000,null,null,null,null,null,null,null,null,null,null,null,"France","Франция"]
["ЯНАО",37220,31640,25660,22340,null,null,null,null,null,null,null,null,null,null,null,"Gabon","Габон"]
["Шымкент",264000,218766.66666666666,175716.66666666666,153416.66666666666,null,null,null,null,null,null,null,null,null,null,null,"The Gambia","Гамбия"]
["Гатчина",35000,31000,28500,25000,null,null,null,null,null,null,null,null,null,null,null,"Georgia","Грузия"]
["Тамбов",39000,34000,31000,29500,null,null,null,null,null,null,null,null,null,null,null,"Germany","Германия"]
["Владимир",25000,22900,20000,17500,null,null,null,null,null,null,null,null,null,null,null,"Ghana","Гана"]
[null,null,null,null,null,null,null,null,null,null,null,null,null,null,null,null,"Greece","Греция"]
[null,null,null,null,null,null,null,null,null,null,null,null,null,null,null,null,"Grenada","Гренада"]
[null,null,null,null,null,null,null,null,null,null,null,null,null,null,null,null,"Guatemala","Гватемала"]
[null,null,null,null,null,null,null,null,null,null,null,null,null,null,null,null,"Guinea","Гвинея"]
[null,null,null,null,null,null,null,null,null,null,null,null,null,null,null,null,"Guinea-Bissau","Гвинея-Бисау"]
[null,null,null,null,null,null,null,null,null,null,null,null,null,null,null,null,"Guyana","Гайана"]
[null,null,null,null,null,null,null,null,null,null,null,null,null,null,null,null,"Haiti","Гаити"]
[null,null,null,null,null,null,null,null,null,null,null,null,null,null,null,null,"Honduras","Гондурас"]
[null,null,null,null,null,null,null,null,null,null,null,null,null,null,null,null,"Hungary","Венгрия"]
[null,null,null,null,null,null,null,null,null,null,null,null,null,null,null,null,"Iceland","Исландия"]
[null,null,null,null,null,null,null,null,null,null,null,null,null,null,null,null,"India","Индия"]
[null,null,null,null,null,null,null,null,null,null,null,null,null,null,null,null,"Indonesia","Индонезия"]
[null,null,null,null,null,null,null,null,null,null,null,null,null,null,null,null,"Iran","Иран"]
[null,null,null,null,null,null,null,null,null,null,null,null,null,null,null,null,"Iraq","Ирак"]
[null,null,null,null,null,null,null,null,null,null,null,null,null,null,null,null,"Ireland","Ирландия"]
[null,null,null,null,null,null,null,null,null,null,null,null,null,null,null,null,"Israel","Израиль"]
[null,null,null,null,null,null,null,null,null,null,null,null,null,null,null,null,"Italy","Италия"]
[null,null,null,null,null,null,null,null,null,null,null,null,null,null,null,null,"Jamaica","Ямайка"]
[null,null,null,null,null,null,null,null,null,null,null,null,null,null,null,null,"Japan","Япония"]
[null,null,null,null,null,null,null,null,null,null,null,null,null,null,null,null,"Jordan","Иордания"]
[null,null,null,null,null,null,null,null,null,null,null,null,null,null,null,null,"Kazakhstan","Казахстан"]
[null,null,null,null,null,null,null,null,null,null,null,null,null,null,null,null,"Kenya","Кения"]
[null,null,null,null,null,null,null,null,null,null,null,null,null,null,null,null,"Kiribati","Кирибати"]
[null,null,null,null,null,null,null,null,null,null,null,null,null,null,null,null,"North Korea","Северная Корея"]
[null,null,null,null,null,null,null,null,null,null,null,null,null,null,null,null,"South Korea","Южная Корея"]
[null,null,null,null,null,null,null,null,null,null,null,null,null,null,null,null,"Kosovo","Косово"]
[null,null,null,null,null,null,null,null,null,null,null,null,null,null,null,null,"Kuwait","Кувейт"]
[null,null,null,null,null,null,null,null,null,null,null,null,null,null,null,null,"Kyrgyzstan","Киргизия"]
[null,null,null,null,null,null,null,null,null,null,null,null,null,null,null,null,"Laos","Лаос"]
[null,null,null,null,null,null,null,null,null,null,null,null,null,null,null,null,"Latvia","Латвия"]
[null,null,null,null,null,null,null,null,null,null,null,null,null,null,null,null,"Lebanon","Ливан"]
[null,null,null,null,null,null,null,null,null,null,null,null,null,null,null,null,"Lesotho","Лесото"]
[null,null,null,null,null,null,null,null,null,null,null,null,null,null,null,null,"Liberia","Либерия"]
[null,null,null,null,null,null,null,null,null,null,null,null,null,null,null,null,"Libya","Ливия"]
[null,null,null,null,null,null,null,null,null,null,null,null,null,null,null,null,"Liechtenstein","Лихтенштейн"]
[null,null,null,null,null,null,null,null,null,null,null,null,null,null,null,null,"Lithuania","Литва"]
[null,null,null,null,null,null,null,null,null,null,null,null,null,null,null,null,"Luxembourg","Люксембург"]
[null,null,null,null,null,null,null,null,null,null,null,null,null,null,null,null,"Madagascar","Мадагаскар"]
[null,null,null,null,null,null,null,null,null,null,null,null,null,null,null,null,"Malawi","Малави"]
[null,null,null,null,null,null,null,null,null,null,null,null,null,null,null,null,"Malaysia","Малайзия"]
[null,null,null,null,null,null,null,null,null,null,null,null,null,null,null,null,"Maldives","Мальдивы"]
[null,null,null,null,null,null,null,null,null,null,null,null,null,null,null,null,"Mali","Мали"]
[null,null,null,null,null,null,null,null,null,null,null,null,null,null,null,null,"Malta","Мальта"]
[null,null,null,null,null,null,null,null,null,null,null,null,null,null,null,null,"Marshall Islands","Маршалловы острова"]
[null,null,null,null,null,null,null,null,null,null,null,null,null,null,null,null,"Mauritania","Мавритания"]
[null,null,null,null,null,null,null,null,null,null,null,null,null,null,null,null,"Mauritius","Маврикий"]
[null,null,null,null,null,null,null,null,null,null,null,null,null,null,null,null,"Mexico","Мексика"]
[null,null,null,null,null,null,null,null,null,null,null,null,null,null,null,null,"Federated States of Micronesia","Федеративные Штаты Микронезии"]
[null,null,null,null,null,null,null,null,null,null,null,null,null,null,null,null,"Moldova","Молдова"]
[null,null,null,null,null,null,null,null,null,null,null,null,null,null,null,null,"Monaco","Монако"]
[null,null,null,null,null,null,null,null,null,null,null,null,null,null,null,null,"Mongolia","Монголия"]
[null,null,null,null,null,null,null,null,null,null,null,null,null,null,null,null,"Montenegro","Черногория"]
[null,null,null,null,null,null,null,null,null,null,null,null,null,null,null,null,"Morocco","Марокко"]
[null,null,null,null,null,null,null,null,null,null,null,null,null,null,null,null,"Mozambique","Мозамбик"]
[null,null,null,null,null,null,null,null,null,null,null,null,null,null,null,null,"Myanmar","Мьянма"]
[null,null,null,null,null,null,null,null,null,null,null,null,null,null,null,null,"Namibia","Намибия"]
[null,null,null,null,null,null,null,null,null,null,null,null,null,null,null,null,"Nauru","Науру"]
[null,null,null,null,null,null,null,null,null,null,null,null,null,null,null,null,"Nepal","Непал"]
[null,null,null,null,null,null,null,null,null,null,null,null,null,null,null,null,"The Netherlands","Нидерланды"]
[null,null,null,null,null,null,null,null,null,null,null,null,null,null,null,null,"New Zealand","Новая Зеландия"]
[null,null,null,null,null,null,null,null,null,null,null,null,null,null,null,null,"Nicaragua","Никарагуа"]
[null,null,null,null,null,null,null,null,null,null,null,null,null,null,null,null,"Niger","Нигер"]
[null,null,null,null,null,null,null,null,null,null,null,null,null,null,null,null,"Nigeria","Нигерия"]
[null,null,null,null,null,null,null,null,null,null,null,null,null,null,null,null,"Norway","Норвегия"]
[null,null,null,null,null,null,null,null,null,null,null,null,null,null,null,null,"Oman","Оман"]
[null,null,null,null,null,null,null,null,null,null,null,null,null,null,null,null,"Pakistan","Пакистан"]
[null,null,null,null,null,null,null,null,null,null,null,null,null,null,null,null,"Palau","Палау"]
[null,null,null,null,null,null,null,null,null,null,null,null,null,null,null,null,"Panama","Панама"]
[null,null,null,null,null,null,null,null,null,null,null,null,null,null,null,null,"Papua New Guinea","Папуа – Новая Гвинея"]
[null,null,null,null,null,null,null,null,null,null,null,null,null,null,null,null,"Paraguay","Парагвай"]
[null,null,null,null,null,null,null,null,null,null,null,null,null,null,null,null,"Peru","Перу"]
[null,null,null,null,null,null,null,null,null,null,null,null,null,null,null,null,"The Philippines","Филиппины"]
[null,null,null,null,null,null,null,null,null,null,null,null,null,null,null,null,"Poland","Польша"]
[null,null,null,null,null,null,null,null,null,null,null,null,null,null,null,null,"Portugal","Португалия"]
[null,null,null,null,null,null,null,null,null,null,null,null,null,null,null,null,"Qatar","Катар"]
[null,null,null,null,null,null,null,null,null,null,null,null,null,null,null,null,"Romania","Румыния"]
[null,null,null,null,null,null,null,null,null,null,null,null,null,null,null,null,"Russia","Россия"]
[null,null,null,null,null,null,null,null,null,null,null,null,null,null,null,null,"Rwanda","Руанда"]
[null,null,null,null,null,null,null,null,null,null,null,null,null,null,null,null,"Saint Kitts and Nevis","Сент-Китс и Невис"]
[null,null,null,null,null,null,null,null,null,null,null,null,null,null,null,null,"Saint Lucia","Сент-Люсия"]
[null,null,null,null,null,null,null,null,null,null,null,null,null,null,null,null,"Saint Vincent and the Grenadines","Сент-Винсент и Гренадины"]
[null,null,null,null,null,null,null,null,null,null,null,null,null,null,null,null,"Samoa","Самоа"]
[null,null,null,null,null,null,null,null,null,null,null,null,null,null,null,null,"San Marino","Сан-Марино"]
[null,null,null,null,null,null,null,null,null,null,null,null,null,null,null,null,"Sao Tome and Principe","Сан-Томе и Принсипи"]
[null,null,null,null,null,null,null,null,null,null,null,null,null,null,null,null,"Saudi Arabia","Саудовская Аравия"]
[null,null,null,null,null,null,null,null,null,null,null,null,null,null,null,null,"Senegal","Сенегал"]
[null,null,null,null,null,null,null,null,null,null,null,null,null,null,null,null,"Serbia","Сербия"]
[null,null,null,null,null,null,null,null,null,null,null,null,null,null,null,null,"Seychelles","Сейшелы"]
[null,null,null,null,null,null,null,null,null,null,null,null,null,null,null,null,"Sierra Leone","Сьерра-Леоне"]
[null,null,null,null,null,null,null,null,null,null,null,null,null,null,null,null,"Singapore","Сингапур"]
[null,null,null,null,null,null,null,null,null,null,null,null,null,null,null,null,"Slovakia","Словакия"]
[null,null,null,null,null,null,null,null,null,null,null,null,null,null,null,null,"Slovenia","Словения"]
[null,null,null,null,null,null,null,null,null,null,null,null,null,null,null,null,"Solomon Islands","Соломоновы Острова"]
[null,null,null,null,null,null,null,null,null,null,null,null,null,null,null,null,"Somalia","Сомали"]
[null,null,null,null,null,null,null,null,null,null,null,null,null,null,null,null,"South Africa","Южная Африка"]
[null,null,null,null,null,null,null,null,null,null,null,null,null,null,null,null,"South Sudan","Южный Судан"]
[null,null,null,null,null,null,null,null,null,null,null,null,null,null,null,null,"Spain","Испания"]
[null,null,null,null,null,null,null,null,null,null,null,null,null,null,null,null,"Sri Lanka","Шри-Ланка"]
[null,null,null,null,null,null,null,null,null,null,null,null,null,null,null,null,"Sudan","Судан"]
[null,null,null,null,null,null,null,null,null,null,null,null,null,null,null,null,"Suriname","Суринам"]
[null,null,null,null,null,null,null,null,null,null,null,null,null,null,null,null,"Swaziland","Свазиленд"]
[null,null,null,null,null,null,null,null,null,null,null,null,null,null,null,null,"Sweden","Швеция"]
[null,null,null,null,null,null,null,null,null,null,null,null,null,null,null,null,"Switzerland","Швейцария"]
[null,null,null,null,null,null,null,null,null,null,null,null,null,null,null,null,"Syria","Сирия"]
[null,null,null,null,null,null,null,null,null,null,null,null,null,null,null,null,"Taiwan","Тайвань"]
[null,null,null,null,null,null,null,null,null,null,null,null,null,null,null,null,"Tajikistan","Таджикистан"]
[null,null,null,null,null,null,null,null,null,null,null,null,null,null,null,null,"Tanzania","Танзания"]
[null,null,null,null,null,null,null,null,null,null,null,null,null,null,null,null,"Thailand","Таиланд"]
[null,null,null,null,null,null,null,null,null,null,null,null,null,null,null,null,"Togo","Того"]
[null,null,null,null,null,null,null,null,null,null,null,null,null,null,null,null,"Tonga","Тонга"]
[null,null,null,null,null,null,null,null,null,null,null,null,null,null,null,null,"Trinidad and Tobago","Тринидад и Тобаго"]
[null,null,null,null,null,null,null,null,null,null,null,null,null,null,null,null,"Tunisia","Тунис"]
[null,null,null,null,null,null,null,null,null,null,null,null,null,null,null,null,"Turkey","Турция"]
[null,null,null,null,null,null,null,null,null,null,null,null,null,null,null,null,"Turkmenistan","Туркменистан"]
[null,null,null,null,null,null,null,null,null,null,null,null,null,null,null,null,"Tuvalu","Тувалу"]
[null,null,null,null,null,null,null,null,null,null,null,null,null,null,null,null,"Uganda","Уганда"]
[null,null,null,null,null,null,null,null,null,null,null,null,null,null,null,null,"Ukraine","Украина"]
[null,null,null,null,null,null,null,null,null,null,null,null,null,null,null,null,"United Arab Emirates","Объединенные Арабские Эмираты"]
[null,null,null,null,null,null,null,null,null,null,null,null,null,null,null,null,"United Kingdom","Великобритания"]
[null,null,null,null,null,null,null,null,null,null,null,null,null,null,null,null,"United States of America","США"]
[null,null,null,null,null,null,null,null,null,null,null,null,null,null,null,null,"Uruguay","Уругвай"]
[null,null,null,null,null,null,null,null,null,null,null,null,null,null,null,null,"Uzbekistan","Узбекистан"]
[null,null,null,null,null,null,null,null,null,null,null,null,null,null,null,null,"Vanuatu","Вануату"]
[null,null,null,null,null,null,null,null,null,null,null,null,null,null,null,null,"Vatican City","Ватикан"]
[null,null,null,null,null,null,null,null,null,null,null,null,null,null,null,null,"Venezuela","Венесуэла"]
[null,null,null,null,null,null,null,null,null,null,null,null,null,null,null,null,"Vietnam","Вьетнам"]
[null,null,null,null,null,null,null,null,null,null,null,null,null,null,null,null,"Yemen","Йемен"]
[null,null,null,null,null,null,null,null,null,null,null,null,null,null,null,null,"Zambia","Замбия"]
[null,null,null,null,null,null,null,null,null,null,null,null,null,null,null,null,"Zimbabwe","Зимбабве"]